fUST/lending_fUST_20250425
["ID","MTS","AMOUNT","RATE_DAILY","PERIOD"]
[358933956,1745555439377,-505.822263,0.00016712,2]
[358933957,1745555439387,-923.85,0.00016712,2]
[358933958,1745555439398,-500.0,0.00016712,2]
[358933959,1745555439407,-500.0,0.00016712,2]
[358933960,1745555439418,-1062.96,0.00016712,2]
[358933961,1745555439428,-151.0,0.00016712,2]
[358933962,1745555439437,-151.0,0.00016712,2]
[358933963,1745555439446,-1812.65,0.00016712,2]
[358933964,1745555439457,-1023.12,0.00016712,2]
[358933965,1745555439466,-502.60440826,0.00016712,2]
[358933966,1745555439476,-509.13982849,0.00016712,2]
[358933967,1745555439485,-500.0,0.00016712,2]
[358933968,1745555439495,-500.0,0.00016712,2]
[358933969,1745555439504,-500.0,0.00016712,2]
[358933970,1745555439513,-166.52008506,0.00016712,2]
[358933971,1745555439523,-902.94,0.00016712,2]
[358933972,1745555439532,-500.0,0.00016712,2]
[358933973,1745555439541,-504.16051829,0.00016712,2]
[358933974,1745555439551,-888.68,0.00016712,2]
[358933975,1745555439560,-502.28854215,0.00016712,2]
[358933976,1745555439569,-840.64,0.00016712,2]
[358933977,1745555439578,-215.33,0.00016712,2]
[358933978,1745555439588,-500.0,0.00016712,2]
[358933979,1745555439597,-546.6,0.00016712,2]
[358933980,1745555439606,-271.23749987,0.00016712,2]
[358933981,1745555439615,-505.55886331,0.00016712,2]
[358933982,1745555439625,-503.45090076,0.00016712,2]
[358933983,1745555439635,-504.90765489,0.00016712,2]
[358933984,1745555439644,-1827.38,0.00016712,2]
[358933985,1745555439653,-1037.59,0.00016712,2]
[358933986,1745555439663,-506.54441879,0.00016712,2]
[358933987,1745555439672,-503.6434383,0.00016712,2]
[358933988,1745555439682,-151.0,0.00016712,2]
[358933989,1745555439691,-505.77637606,0.00016712,2]
[358933990,1745555439702,-505.44444239,0.00016712,2]
[358933991,1745555439711,-1302.16,0.00016712,2]
[358933992,1745555439720,-503.53432385,0.00016712,2]
[358933993,1745555439730,-507.90481332,0.00016712,2]
[358933994,1745555439740,-502.40502262,0.00016712,2]
[358933995,1745555439753,-500.0,0.00016712,2]
[358933996,1745555439762,-506.49,0.00016712,2]
[358933997,1745555439773,-1131.62,0.00016712,2]
[358933998,1745555439783,-503.98768442,0.00016712,2]
[358933999,1745555439793,-501.57531734,0.00016712,2]
[358934000,1745555439802,-504.56475554,0.00016712,2]
[358934001,1745555439813,-504.0044642,0.00016712,2]
[358934002,1745555439824,-501.16088218,0.00016712,2]
[358934003,1745555439836,-500.0,0.00016712,2]
[358934004,1745555439845,-503.33369492,0.00016712,2]
[358934005,1745555439855,-248.27,0.00016712,2]
[358934006,1745555439864,-500.0,0.00016712,2]
[358934007,1745555439874,-853.73,0.00016712,2]
[358934008,1745555439883,-151.0,0.00016712,2]
[358934009,1745555439892,-503.58239851,0.00016712,2]
[358934010,1745555439902,-503.85160687,0.00016712,2]
[358934011,1745555439912,-503.69047528,0.00016712,2]
[358934012,1745555439921,-151.0,0.00016712,2]
[358934013,1745555439931,-172.770498,0.00016712,2]
[358934014,1745555439941,-503.44593247,0.00016712,2]
[358934015,1745555439950,-172.770498,0.00016712,2]
[358934016,1745555439962,-982.37,0.00016712,2]
[358934017,1745555439972,-1992.87,0.00016712,2]
[358934018,1745555439985,-856.13,0.00016712,2]
[358934019,1745555439994,-548.53543286,0.00016712,2]
[358934020,1745555440003,-504.32728837,0.00016712,2]
[358934021,1745555440013,-669.37,0.00016712,2]
[358934022,1745555440023,-500.0,0.00016712,2]
[358934023,1745555440032,-510.05406901,0.00016712,2]
[358934024,1745555440042,-502.01109698,0.00016712,2]
[358934025,1745555440055,-505.6835528,0.00016712,2]
[358934026,1745555440065,-151.0,0.00016712,2]
[358934027,1745555440075,-500.0,0.00016712,2]
[358934028,1745555440084,-501.76482293,0.00016712,2]
[358934029,1745555440094,-157.037072,0.00016712,2]
[358934030,1745555440104,-500.0,0.00016712,2]
[358934031,1745555440113,-505.22957307,0.00016712,2]
[358934032,1745555440123,-154.967351,0.00016712,2]
[358934033,1745555440133,-151.0,0.00016712,2]
[358934034,1745555440144,-500.0,0.00016712,2]
[358934035,1745555440154,-154.967351,0.00016712,2]
[358934036,1745555440163,-151.0,0.00016712,2]
[358934037,1745555440173,-913.34,0.00016712,2]
[358934038,1745555440183,-151.0,0.00016712,2]
[358934039,1745555440192,-500.0,0.00016712,2]
[358934040,1745555440202,-503.93576326,0.00016712,2]
[358934041,1745555440211,-500.0,0.00016712,2]
[358934042,1745555440221,-2828.62,0.00016712,2]
[358934043,1745555440231,-500.0,0.00016712,2]
[358934044,1745555440240,-500.0,0.00016712,2]
[358934045,1745555440250,-543.01,0.00016712,2]
[358934046,1745555440261,-503.95974961,0.00016712,2]
[358934047,1745555440271,-500.0,0.00016712,2]
[358934048,1745555440281,-1034.73,0.00016712,2]
[358934049,1745555440291,-519.84,0.00016712,2]
[358934050,1745555440301,-500.0,0.00016712,2]
[358934051,1745555440311,-500.0,0.00016712,2]
[358934052,1745555440320,-206.62491867,0.00016712,2]
[358934053,1745555440331,-500.0,0.00016712,2]
[358934054,1745555440341,-2424.55,0.00016712,2]
[358934055,1745555440350,-1098.08248956,0.00016772,2]
[358934056,1745555440359,-500.0,0.00016773,2]
[358934057,1745555440368,-500.0,0.00016773,2]
[358934058,1745555440377,-500.0,0.00016773,2]
[358934059,1745555440386,-500.0,0.00016773,2]
[358934060,1745555440396,-500.0,0.00016773,2]
[358934061,1745555440406,-500.0,0.00016773,2]
[358934062,1745555440415,-500.0,0.00016773,2]
[358934063,1745555440425,-500.0,0.00016773,2]
[358934064,1745555440435,-500.0,0.00016773,2]
[358934065,1745555440444,-500.0,0.00016773,2]
[358934066,1745555440453,-500.0,0.00016773,2]
[358934067,1745555440462,-500.0,0.00016773,2]
[358934068,1745555440472,-500.0,0.00016773,2]
[358934069,1745555440481,-151.0,0.00016786,2]
[358934070,1745555440490,-2516.931526,0.00016786,2]
[358934071,1745555440499,-151.0,0.00016786,2]
[358934072,1745555440509,-151.0,0.00016786,2]
[358934073,1745555440519,-151.0,0.00016786,2]
[358934074,1745555440528,-151.0,0.00016786,2]
[358934075,1745555440537,-200.331963,0.00016786,2]
[358934076,1745555440547,-200.331963,0.00016786,2]
[358934077,1745555440556,-151.0,0.00016786,2]
[358934079,1745555440565,-151.0,0.00016786,2]
[358934080,1745555440575,-151.0,0.00016786,2]
[358934081,1745555440584,-151.0,0.00016786,2]
[358934082,1745555440594,-172.770498,0.00016786,2]
[358934083,1745555440603,-172.770498,0.00016786,2]
[358934084,1745555440612,-151.0,0.00016786,2]
[358934085,1745555440622,-154.967351,0.00016786,2]
[358934086,1745555440631,-151.0,0.00016786,2]
[358934087,1745555440640,-154.967351,0.00016786,2]
[358934088,1745555440650,-258.714339,0.00016786,2]
[358934089,1745555440660,-151.0,0.00016786,2]
[358934090,1745555440669,-176597.86818558,0.00016786,2]
[358934091,1745555440818,-501.8925894,0.00016786,2]
[358934092,1745555440830,-5124.69625634,0.00016786,2]
[358934093,1745555440841,-65480.73918448,0.00016786,2]
[358934094,1745555440853,-1450.10799,0.00016786,2]
[358934095,1745555441186,-2247.0,0.00015651,2]
[358934096,1745555441195,-367.33472351,0.00016437,2]
[358934097,1745555441204,-228.69600888,0.00016438,2]
[358934098,1745555441216,-271.30399112,0.00016438,2]
[358934099,1745555441225,-500.0,0.00016712,2]
[358934100,1745555441234,-54.97481484,0.00016786,2]
[358934101,1745555441245,-1239.80000001,0.00016786,2]
[358934102,1745555441257,-639.12583894,0.00016786,2]
[358934103,1745555441268,-985.13637237,0.00016786,2]
[358934104,1745555441629,-253.00448904,0.00016786,2]
[358934105,1745555441641,-2245.01453641,0.00016786,2]
[358934115,1745555446502,-253.9710398,0.00016438,2]
[358934116,1745555446514,-246.0289602,0.00016438,2]
[358934117,1745555446523,-500.0,0.00016438,2]
[358934118,1745555446532,-500.0,0.00016712,2]
[358934119,1745555446542,-500.0,0.00016712,2]
[358934120,1745555446551,-151.0,0.00016712,2]
[358934121,1745555446560,-25880.17927065,0.00016786,2]
[358934125,1745555483370,763.10879085,0.00014965,2]
[358934135,1745556129799,1538.6308113,0.00014978,2]
[358934143,1745556253587,450.9494318,0.00014997,2]
[358934144,1745556325213,245.55804845,0.00014941,2]
[358934145,1745556336160,-244.698896,0.00015041,2]
[358934146,1745556336183,-394.90731407,0.00015341,2]
[358934147,1745556336208,-500.0,0.00015341,2]
[358934148,1745556336232,-500.0,0.00015341,2]
[358934149,1745556336257,-500.0,0.00015341,2]
[358934150,1745556336284,-500.0,0.00015341,2]
[358934151,1745556336308,-500.0,0.00015341,2]
[358934152,1745556336335,-279.381933,0.00015341,2]
[358934153,1745556336359,-235.01185693,0.00015342,2]
[358934200,1745556437083,-197.70910367,0.00015018,2]
[358934201,1745556437106,-402.28516161,0.00015019,2]
[358934202,1745556445128,-460.10279909,0.00015019,2]
[358934203,1745556445151,-167.75509615,0.00015242,2]
[358934204,1745556445175,-404.62265068,0.00015344,2]
[358934205,1745556445198,-274.90416204,0.00015345,2]
[358934206,1745556453110,-900.0,0.00015345,2]
[358934207,1745556465883,486.6868554,0.00014941,2]
[358934208,1745556469022,754.44195155,0.00014918,2]
[358934209,1745556499238,-210.15586831,0.00015018,2]
[358934211,1745556504747,-289.84413169,0.00015018,2]
[358934212,1745556504776,-58.17611774,0.00015018,2]
[358934213,1745556511488,-152.0,0.00015018,2]
[358934214,1745556520019,-158.16566355,0.00015017,2]
[358934216,1745556526073,-341.83433645,0.00015017,2]
[358934217,1745556526106,-141.26038643,0.00015017,2]
[358934218,1745556542549,-156.06766925,0.00015017,2]
[358934219,1745556547093,-202.67194432,0.00015017,2]
[358934220,1745556547125,-97.32805568,0.00015017,2]
[358934221,1745556549099,-517.10688252,0.00015017,2]
[358934222,1745556549138,-9.02738402,0.00015017,2]
[358934223,1745556549167,-180.38470247,0.00015017,2]
[358934224,1745556549189,-300.0,0.00015344,2]
[358934225,1745556549213,-23725.09583796,0.00015345,2]
[358934226,1745556549235,-408.0,0.000156,2]
[358934227,1745556549258,-3494.6183291,0.00015667,2]
[358934228,1745556549280,-555.97997158,0.00015845,2]
[358934229,1745556549301,-227.34144962,0.00016164,2]
[358934230,1745556549324,-464.99642308,0.00016238,2]
[358934232,1745556571125,-2119.83377737,0.00015449,2]
[358934233,1745556571156,-215.16008493,0.00015449,2]
[358934235,1745556632542,-218.22593751,0.00016238,2]
[358934236,1745556632552,-153.66700299,0.00016338,2]
[358934237,1745556632563,-207.4,0.00016428,2]
[358934238,1745556632573,-229.8,0.00016428,3]
[358934239,1745556632582,-503.8502135,0.00016428,3]
[358934269,1745556638645,-185.5697865,0.00016428,3]
[358934270,1745556638655,-590.94,0.00016428,3]
[358934271,1745556638665,-300.0,0.00016437,2]
[358934272,1745556638675,-300.0,0.00016437,2]
[358934273,1745556638684,-375.65615625,0.00016437,2]
[358934274,1745556638693,-159.13901474,0.00016437,2]
[358934275,1745556638703,-514.50365484,0.00016438,2]
[358934276,1745556638713,-513.22764237,0.00016438,2]
[358934277,1745556638722,-500.0,0.00016438,2]
[358934278,1745556638731,-213.18597241,0.00016438,2]
[358934280,1745556641160,-141.8001235,0.00016438,2]
[358934294,1745556646868,-145.01390409,0.00016438,2]
[358934295,1745556646878,-503.90711056,0.00016438,2]
[358934296,1745556646889,-499.91415934,0.00016438,2]
[358934297,1745556646900,-513.22647336,0.00016438,2]
[358934298,1745556646910,-500.0,0.00016438,2]
[358934299,1745556646920,-500.0,0.00016438,2]
[358934300,1745556646931,-500.0,0.00016438,2]
[358934301,1745556646941,-500.0,0.00016438,2]
[358934303,1745556646951,-504.04331699,0.00016438,2]
[358934304,1745556646960,-501.49281878,0.00016438,2]
[358934305,1745556646969,-304.36844838,0.00016438,2]
[358934306,1745556646979,-504.84224886,0.00016438,2]
[358934307,1745556646988,-500.0,0.00016438,2]
[358934308,1745556646998,-1017.49,0.00016438,2]
[358934309,1745556647007,-500.0,0.00016438,2]
[358934310,1745556647016,-504.15028281,0.00016438,2]
[358934311,1745556647026,-500.0,0.00016438,2]
[358934312,1745556647036,-500.0,0.00016438,2]
[358934313,1745556647046,-500.0,0.00016438,2]
[358934314,1745556647057,-500.0,0.00016438,2]
[358934315,1745556647068,-504.92391122,0.00016438,2]
[358934316,1745556647080,-528.91667244,0.00016438,2]
[358934317,1745556647090,-508.50504994,0.00016438,2]
[358934318,1745556647100,-500.0,0.00016438,2]
[358934319,1745556647111,-500.0,0.00016438,2]
[358934320,1745556647121,-500.0,0.00016438,2]
[358934321,1745556647131,-500.0,0.00016438,2]
[358934322,1745556647141,-507.30892594,0.00016438,2]
[358934323,1745556647151,-503.98511024,0.00016438,2]
[358934324,1745556647161,-503.55562547,0.00016438,2]
[358934325,1745556647171,-500.0,0.00016438,2]
[358934326,1745556647180,-500.0,0.00016438,2]
[358934327,1745556647190,-500.0,0.00016438,2]
[358934328,1745556647200,-500.0,0.00016438,2]
[358934329,1745556647210,-500.0,0.00016438,2]
[358934330,1745556647221,-500.0,0.00016438,2]
[358934331,1745556647231,-500.0,0.00016438,2]
[358934332,1745556647241,-500.0,0.00016438,2]
[358934333,1745556647251,-500.0,0.00016438,2]
[358934334,1745556647260,-500.0,0.00016438,2]
[358934335,1745556647271,-506.76540462,0.00016438,2]
[358934336,1745556647281,-500.0,0.00016438,2]
[358934337,1745556647291,-500.0,0.00016438,2]
[358934338,1745556647301,-500.0,0.00016438,2]
[358934339,1745556647310,-500.0,0.00016438,2]
[358934340,1745556647320,-500.0,0.00016438,2]
[358934341,1745556647329,-500.68212434,0.00016438,2]
[358934342,1745556647340,-500.0,0.00016438,2]
[358934343,1745556647349,-500.0,0.00016438,2]
[358934344,1745556647360,-500.0,0.00016438,2]
[358934345,1745556647370,-500.0,0.00016438,2]
[358934346,1745556647381,-500.0,0.00016438,2]
[358934347,1745556647391,-500.0,0.00016438,2]
[358934348,1745556647400,-500.0,0.00016438,2]
[358934349,1745556647410,-500.0,0.00016438,2]
[358934350,1745556647420,-500.0,0.00016438,2]
[358934351,1745556647429,-647.27699608,0.00016438,2]
[358934352,1745556647439,-500.0,0.00016438,2]
[358934353,1745556647448,-500.0,0.00016438,2]
[358934354,1745556647458,-500.0,0.00016438,2]
[358934355,1745556647467,-500.0,0.00016438,2]
[358934356,1745556647477,-500.0,0.00016438,2]
[358934357,1745556647486,-500.0,0.00016438,2]
[358934358,1745556647496,-500.0,0.00016438,2]
[358934359,1745556647505,-500.0,0.00016438,2]
[358934360,1745556647515,-500.0,0.00016438,2]
[358934361,1745556647745,-500.0,0.00016438,2]
[358934362,1745556647756,-500.0,0.00016438,2]
[358934363,1745556647766,-500.0,0.00016438,2]
[358934364,1745556647775,-500.0,0.00016438,2]
[358934365,1745556647785,-500.0,0.00016438,2]
[358934366,1745556647794,-500.0,0.00016438,2]
[358934367,1745556647804,-500.0,0.00016438,2]
[358934368,1745556647813,-500.0,0.00016438,2]
[358934369,1745556647822,-500.0,0.00016438,2]
[358934370,1745556647832,-501.99568592,0.00016438,2]
[358934371,1745556647841,-500.0,0.00016438,2]
[358934372,1745556647851,-500.0,0.00016438,2]
[358934373,1745556647860,-500.0,0.00016438,2]
[358934374,1745556647870,-500.0,0.00016438,2]
[358934375,1745556647879,-867.69,0.00016438,2]
[358934376,1745556647888,-500.0,0.00016438,2]
[358934377,1745556647898,-502.94222171,0.00016438,2]
[358934378,1745556647908,-505.54865435,0.00016438,2]
[358934379,1745556647917,-503.48207283,0.00016438,2]
[358934380,1745556647926,-875.21,0.00016438,2]
[358934381,1745556647935,-503.44088976,0.00016438,2]
[358934382,1745556647945,-500.0,0.00016438,2]
[358934383,1745556647954,-502.81528338,0.00016438,2]
[358934384,1745556647963,-500.0,0.00016438,2]
[358934385,1745556647972,-508.42278895,0.00016438,2]
[358934386,1745556647982,-500.0,0.00016438,2]
[358934387,1745556647991,-500.0,0.00016438,2]
[358934388,1745556648001,-500.0,0.00016438,2]
[358934389,1745556648010,-505.10309192,0.00016438,2]
[358934390,1745556648020,-504.06704402,0.00016438,2]
[358934391,1745556648029,-500.0,0.00016438,2]
[358934392,1745556648039,-509.78465041,0.00016438,2]
[358934393,1745556648048,-500.0,0.00016438,2]
[358934394,1745556648058,-500.0,0.00016438,2]
[358934395,1745556648067,-516.59070292,0.00016438,2]
[358934396,1745556648077,-503.25521489,0.00016438,2]
[358934397,1745556648086,-506.8232759,0.00016438,2]
[358934398,1745556648096,-810.16,0.00016438,2]
[358934399,1745556648105,-500.0,0.00016438,2]
[358934400,1745556648115,-500.0,0.00016438,2]
[358934401,1745556648125,-506.00723493,0.00016438,2]
[358934402,1745556648135,-500.0,0.00016438,2]
[358934403,1745556648144,-500.0,0.00016438,2]
[358934404,1745556648154,-500.0,0.00016438,2]
[358934405,1745556648163,-503.53574194,0.00016438,2]
[358934406,1745556648173,-974.38,0.00016438,2]
[358934407,1745556648182,-500.0,0.00016438,2]
[358934408,1745556648192,-500.0,0.00016438,2]
[358934409,1745556648201,-500.0,0.00016438,2]
[358934410,1745556648212,-501.81036374,0.00016438,2]
[358934411,1745556648221,-500.0,0.00016438,2]
[358934412,1745556648231,-504.2667936,0.00016438,2]
[358934413,1745556648240,-500.0,0.00016438,2]
[358934414,1745556648249,-500.0,0.00016438,2]
[358934415,1745556648259,-442.91656848,0.00016438,2]
[358934416,1745556648269,-500.0,0.00016438,2]
[358934417,1745556648279,-500.0,0.00016438,2]
[358934418,1745556648288,-500.0,0.00016438,2]
[358934419,1745556648298,-507.32447787,0.00016438,2]
[358934420,1745556648307,-500.0,0.00016438,2]
[358934421,1745556648317,-500.0,0.00016438,2]
[358934422,1745556648327,-500.0,0.00016438,2]
[358934423,1745556648336,-500.0,0.00016438,2]
[358934424,1745556648345,-500.0,0.00016438,2]
[358934425,1745556648355,-500.0,0.00016438,2]
[358934426,1745556648365,-891.91,0.00016438,2]
[358934427,1745556648374,-512.26572073,0.00016438,2]
[358934428,1745556648384,-500.0,0.00016438,2]
[358934429,1745556648393,-507.41738194,0.00016438,2]
[358934430,1745556648403,-500.0,0.00016438,2]
[358934431,1745556648415,-500.0,0.00016438,2]
[358934432,1745556648424,-262.15043651,0.00016438,2]
[358934433,1745556648434,-508.76271364,0.00016438,2]
[358934434,1745556648443,-442.29546531,0.00016438,2]
[358934442,1745557544263,-954.4110989,0.0001509,2]
[358934443,1745557544288,-390.793695,0.00015172,2]
[358934444,1745557544311,-942.2724505,0.00015278,2]
[358934445,1745557544334,-762.85847804,0.00015338,2]
[358934446,1745557646085,-2024.10562596,0.00015338,2]
[358934447,1745557646106,-177.0914867,0.0001544,2]
[358934448,1745557646127,-180.4709491,0.00015453,2]
[358934449,1745557646149,-381.92818453,0.00016138,2]
[358934450,1745557646169,-262.95930938,0.00016237,2]
[358934451,1745557646192,-184.07151656,0.00016237,2]
[358934452,1745557646214,-121.68511144,0.00016238,2]
[358934457,1745557747107,-243.0,0.00015337,2]
[358934458,1745557747132,-438.19568724,0.00015337,2]
[358934459,1745557747156,-39.87248984,0.00016138,2]
[358934460,1745557761122,-112.05351264,0.00016138,2]
[358934461,1745557761146,-151.92600244,0.00016186,2]
[358934462,1745557761167,-151.92600244,0.00016233,2]
[358934463,1745557761190,-679.28994528,0.00016238,2]
[358934464,1745557761212,-184.1161372,0.00016238,2]
[358934476,1745557831818,-182.66555513,0.00015337,2]
[358934477,1745557831828,-65.8838628,0.00016238,2]
[358934478,1745557831837,-317.96099324,0.00016295,2]
[358934479,1745557831848,-184.94083049,0.00016337,2]
[358934492,1745557837823,-115.05916951,0.00016337,2]
[358934493,1745557837834,-926.0,0.00016337,2]
[358934494,1745557837843,-300.0,0.00016337,2]
[358934495,1745557837853,-198.86394823,0.00016337,2]
[358934496,1745557837875,-101.13605177,0.00016337,2]
[358934497,1745557837886,-161.78203403,0.00016338,2]
[358934498,1745557837895,-439.36967327,0.00016338,2]
[358934500,1745557840327,-303.85200488,0.00016328,2]
[358934501,1745557840337,-12994.17329817,0.00016338,2]
[358934502,1745557840384,-1856.84192456,0.00016338,2]
[358934510,1745557845860,-381.92818453,0.00016338,2]
[358934511,1745557845872,-3746.78737795,0.00016338,2]
[358934523,1745558548742,220.993772,0.00014805,2]
[358934528,1745558837097,-166.5654824,0.00015159,2]
[358934529,1745558837119,-500.0,0.00015326,2]
[358934530,1745558837140,-79.14102465,0.00015326,2]
[358934531,1745558849115,-148.3830814,0.00015326,2]
[358934532,1745558849140,-500.0,0.00015326,2]
[358934533,1745558849163,-532.99284407,0.00015326,2]
[358934534,1745558849194,-73.00796804,0.00015326,2]
[358934554,1745558949129,-529.99649384,0.00015058,2]
[358934555,1745558949151,-499.82916607,0.00015058,2]
[358934556,1745558949173,-300.0,0.00015058,2]
[358934557,1745558949194,-9240.58723529,0.00015059,2]
[358934558,1745558949216,-1496.75733754,0.00015226,2]
[358934559,1745558949238,-30376.03177478,0.00015326,2]
[358934560,1745558949260,-720.0,0.00015327,2]
[358934561,1745558949285,-300.0,0.00015327,2]
[358934562,1745558949308,-1891.6141468,0.00015455,2]
[358934563,1745558949330,-317.96099324,0.00015975,2]
[358934564,1745558949354,-250.0,0.00016138,2]
[358934565,1745558949376,-1057.17601794,0.00016164,2]
[358934566,1745558949398,-166.15220313,0.00016164,2]
[358934567,1745558949419,-250.22619672,0.00016164,2]
[358934568,1745558949442,-459.6,0.00016228,3]
[358934569,1745558949465,-1000.0,0.00016238,2]
[358934570,1745558949488,-80284.11298478,0.00016238,2]
[358934571,1745558951099,-170908.97403291,0.00016238,2]
[358934585,1745559032024,-186.46869002,0.00015058,2]
[358934586,1745559032034,-500.0,0.00015058,2]
[358934587,1745559032043,-386.89271282,0.00015058,2]
[358934588,1745559032055,-113.10728718,0.00015058,2]
[358934589,1745559032065,-500.0,0.00015058,2]
[358934590,1745559032074,-500.0,0.00015058,2]
[358934591,1745559032084,-500.0,0.00015058,2]
[358934592,1745559032093,-249.30125363,0.00015058,2]
[358934593,1745559032102,-500.0,0.00015058,2]
[358934594,1745559032113,-500.0,0.00015058,2]
[358934595,1745559032123,-500.0,0.00015058,2]
[358934596,1745559032133,-500.0,0.00015058,2]
[358934597,1745559032143,-500.0,0.00015058,2]
[358934598,1745559032153,-500.0,0.00015058,2]
[358934599,1745559032162,-500.0,0.00015058,2]
[358934600,1745559032171,-500.0,0.00015058,2]
[358934601,1745559032181,-500.0,0.00015058,2]
[358934602,1745559032190,-500.0,0.00015058,2]
[358934603,1745559032199,-500.0,0.00015058,2]
[358934604,1745559032210,-500.0,0.00015058,2]
[358934605,1745559032219,-500.0,0.00015058,2]
[358934606,1745559032228,-500.0,0.00015058,2]
[358934607,1745559032238,-500.0,0.00015058,2]
[358934608,1745559032248,-500.0,0.00015058,2]
[358934609,1745559032259,-500.0,0.00015058,2]
[358934610,1745559032270,-500.0,0.00015058,2]
[358934611,1745559032286,-500.0,0.00015058,2]
[358934612,1745559032295,-500.0,0.00015058,2]
[358934613,1745559032306,-500.0,0.00015058,2]
[358934614,1745559032316,-500.0,0.00015058,2]
[358934615,1745559032326,-500.0,0.00015058,2]
[358934616,1745559032337,-500.0,0.00015058,2]
[358934617,1745559032347,-500.0,0.00015058,2]
[358934618,1745559032357,-500.0,0.00015058,2]
[358934619,1745559032367,-500.0,0.00015058,2]
[358934620,1745559032376,-500.0,0.00015058,2]
[358934621,1745559032386,-647.8156674,0.00015058,2]
[358934622,1745559032397,-500.0,0.00015058,2]
[358934623,1745559032408,-500.0,0.00015058,2]
[358934624,1745559032419,-500.0,0.00015058,2]
[358934625,1745559032429,-500.0,0.00015058,2]
[358934626,1745559032438,-500.0,0.00015058,2]
[358934627,1745559032447,-500.0,0.00015058,2]
[358934628,1745559032456,-500.0,0.00015058,2]
[358934629,1745559032466,-500.0,0.00015058,2]
[358934630,1745559032475,-500.0,0.00015058,2]
[358934631,1745559032485,-567.45271052,0.00015058,2]
[358934632,1745559032495,-250.0,0.00015226,2]
[358934633,1745559032504,-10262.05741305,0.000156,2]
[358934634,1745559032513,-13439.46573323,0.000159,2]
[358934635,1745559032522,-300.0,0.00016237,2]
[358934636,1745559032532,-1200.0,0.00016237,2]
[358934637,1745559032541,-7348.88618067,0.00016238,2]
[358934638,1745559032556,-2065.68754718,0.00016238,2]
[358934639,1745559032572,-374.05366051,0.00016238,2]
[358934640,1745559032587,-109018.28559395,0.00016238,2]
[358934641,1745559032596,-207.4,0.00016264,2]
[358934642,1745559032605,-151.0,0.00016264,2]
[358934643,1745559032615,-500.0,0.00016273,2]
[358934644,1745559032624,-500.0,0.00016273,2]
[358934645,1745559032633,-504.70204473,0.00016273,2]
[358934646,1745559032643,-500.0,0.00016273,2]
[358934647,1745559032652,-500.0,0.00016273,2]
[358934648,1745559032662,-500.0,0.00016273,2]
[358934649,1745559032672,-500.0,0.00016273,2]
[358934650,1745559032682,-500.0,0.00016273,2]
[358934651,1745559032692,-500.0,0.00016273,2]
[358934652,1745559032703,-500.0,0.00016273,2]
[358934653,1745559032713,-500.0,0.0001638,2]
[358934654,1745559032723,-166.15220311,0.00016419,2]
[358934655,1745559032733,-151.0,0.00016438,2]
[358934656,1745559032743,-151.0,0.00016438,2]
[358934657,1745559032752,-500.0,0.00016438,2]
[358934658,1745559032762,-500.0,0.00016438,2]
[358934659,1745559032771,-500.0,0.00016438,2]
[358934660,1745559032782,-500.0,0.00016438,2]
[358934661,1745559032791,-272.88651104,0.00016438,2]
[358934662,1745559032803,-507.01113731,0.00016438,2]
[358934663,1745559032814,-500.0,0.00016438,2]
[358934664,1745559032823,-505.27332257,0.00016438,2]
[358934665,1745559032832,-500.0,0.00016438,2]
[358934666,1745559032842,-151.0,0.00016438,2]
[358934667,1745559032851,-500.0,0.00016438,2]